Cogmind - Beta 16.1 @@@ ROGUE MODE // 2026.02.19 @ 02:41:08 Player: Ceorik Result: Destroyed by Piercing Trap Performance ------------- Evolutions (0) 0 Regions Visited (2) 400 Robots Destroyed (5) 25 Value Destroyed (166) 166 Prototype IDs (0) 0 Alien Tech Used (0) 0 Bonus (0) 0 TOTAL SCORE: 591 Bonus ------- None Cogmind --------- Core Integrity 0/250 Matter 300/300 Energy 199/200 System Corruption 0% Temperature Cool (0) Movement Core (250) Ox4 Location -10/Subcaves Parts ------- > --- POWER (1) -------- Subdweller Power Source > --- PROPULSION (2) --- Subdweller Monowheel > --- UTILITY (2) ------ Small Storage Unit > --- WEAPON (2) ------- Medium Laser Light Assault Rifle > --- INVENTORY (8) ---- Disposable Heat Sink Subdweller Optics Medium Laser Subdweller Machine Gun Peak State ------------ > --- POWER ------------ Subdweller Power Source > --- PROPULSION ------- Subdweller Monowheel Subdweller Monowheel > --- UTILITY ---------- Small Storage Unit Sensor Array > --- WEAPON ----------- Medium Laser Light Assault Rifle > --- INVENTORY -------- Disposable Heat Sink Subdweller Optics Medium Laser [Rating: 10] Favorites ----------- Power Light Ion Engine Engine Light Ion Engine Propulsion Aluminum Leg Leg Aluminum Leg Wheel Subdweller Monowheel Utility Small Storage Unit Device Sensor Array Storage Small Storage Unit Weapon Beam Cannon Energy Gun Medium Laser Energy Cannon Beam Cannon Ballistic Gun Assault Rifle Build | -11 -10 -10 ------- Run | Yrd Mat Sub Slots Evolved . | . . . Power . | . . . Propulsion . | . . . Utility . | . . . Weapon . | . . . Parts Attached 13 | 6 2 5 Power 2 | 1 . 1 Engine 2 | 1 . 1 Core . | . . . Reactor . | . . . Propulsion 4 | 2 . 2 Treads . | . . . Leg 2 | 2 . . Wheel 2 | . . 2 Hover . | . . . Flight . | . . . Utility 2 | 1 1 . Device 1 | . 1 . Storage 1 | 1 . . Processor . | . . . Hackware . | . . . Protection . | . . . Artifact . | . . . Weapon 5 | 2 1 2 Energy Gun 2 | 1 . 1 Energy Cannon 1 | . 1 . Ballistic Gun 2 | 1 . 1 Ballistic Cannon . | . . . Launcher . | . . . Special Weapon . | . . . Impact Weapon . | . . . Slashing Weapon . | . . . Piercing Weapon . | . . . Special Melee Weapon . | . . . Unidentified Prototypes . | . . . Parts Lost 8 | . . 8 Power 1 | . . 1 Propulsion 3 | . . 3 Utility 1 | . . 1 Weapon 3 | . . 3 Highest Loss Streak 4 | . . 4 To Critical Strikes . | . . . Average Backups 2 | . 2 3 Power . | . . . Propulsion . | . . . Utility . | . . 1 Weapon 1 | . 2 1 Tool/Special . | . . . Unused Backups 4 | . . 4 Power . | . . . Propulsion . | . . . Utility 2 | . . 2 Weapon 2 | . . 2 Tool/Special . | . . . Average Slot Usage (%) 93 | . 97 90 Engine 10 | . 14 7 Leg 14 | . 28 3 Wheel 12 | . . 22 Device 12 | . 11 14 Storage 14 | . 14 14 Energy Gun 6 | . . 11 Energy Cannon 8 | . 13 5 Ballistic Gun 12 | . 14 10 Peak Build Rating 10 | 6 7 10 Average Rating 7 | 5 6 8 On Entrance 4 | . 6 7 Avg Prop Armor Cover (%) 6 | . . 6 Naked Turns . | . . . Heaviest Build 14 | 12 14 14 Greatest Support 40 | 20 20 40 Greatest Overweight (x) 4 | 2 . 4 Average Overweight (x) . | . . . Largest Inventory Capacity 8 | 8 8 8 Average Capacity 7 | 7 8 8 Most Carried 5 | 2 3 5 Average Carried 2 | . 2 3 Final Capacity 8 | 8 8 8 Final Carried 4 | . 3 4 Class Distribution -------------------- 100% | Mutant Dominant Class ---------------- Mutant | -10/Materials Mutant | -10/Subcaves Resources | -11 -10 -10 ----------- Run | Yrd Mat Sub Matter Collected 377 | 275 . 102 Remotely . | . . . Salvage Created 296 | 89 . 207 Parts 13 | 1 . 12 Haulers Intercepted . | . . . Recyclers Shooed . | . . . Parts Field Recycled . | . . . Retrieved Matter . | . . . Parts Self-Destructed 9 | . . 9 Prevented . | . . . Parts Restored . | . . . Kills | -11 -10 -10 ------- Run | Yrd Mat Sub Combat Hostiles Destroyed 4 | . . 4 Guns 2 | . . 2 Cannons 2 | . . 2 Classes Destroyed 2 | 1 . 1 Recycler 1 | 1 . . Subdweller 4 | . . 4 Best Kill Streak 1 | 1 . 1 Combat Bots Only 1 | . . 1 Max Kills in Single Turn 1 | 1 . 1 Gunslinging . | . . . Exploded . | . . . Melee . | . . . Uniques/NPCs Destroyed . | . . . Combat | -11 -10 -10 -------- Run | Yrd Mat Sub Hostile Shots Fired 56 | . . 56 Missed 15 | . . 15 Hits 41 | . . 41 Projectile 41 | . . 41 Critical Strikes 1 | . . 1 Damage Taken 999 | . . 999 Core 266 | . . 266 Absorbed by Shields . | . . . Core Remaining (%) 100 | 100 . . Volleys Fired 33 | 5 . 28 Largest 2 | 2 . 2 Hottest 100 | 60 . 100 Shots Fired 60 | 10 . 50 Gun 43 | 10 . 33 Cannon 17 | . . 17 Launcher . | . . . Special . | . . . Kinetic 26 | 5 . 21 Thermal 23 | . . 23 Explosive . | . . . Electromagnetic 11 | 5 . 6 Robot Hit Streak 19 | 6 . 19 Robot Miss Streak 2 | 1 . 2 Penetration Max . | . . . Secondary Targets . | . . . Shots Hit Robots 49 | 8 . 41 Core Hits 12 | 2 . 10 Critical Kills . | . . . Critical Parts Destroyed . | . . . Critical Strikes 2 | 1 . 1 Burn 1 | . . 1 Corrupt 1 | 1 . . Melee Attacks . | . . . Impact . | . . . Slashing . | . . . Piercing . | . . . Sneak Attacks . | . . . Combat Hostiles . | . . . Follow-up Attacks . | . . . Damage Inflicted 557 | 105 . 452 Guns 381 | 105 . 276 Cannons 176 | . . 176 Explosions . | . . . Melee . | . . . Ramming . | . . . Kinetic 207 | 50 . 157 Thermal 250 | . . 250 Explosive . | . . . Electromagnetic 100 | 55 . 45 Impact . | . . . Slashing . | . . . Piercing . | . . . Highest Corruption . | . . . Average Corruption . | . . . Corruption Purged . | . . . Corruption Blocked . | . . . Overload Shots . | . . . Overflow Damage . | . . . Projectiles . | . . . Explosions . | . . . Melee . | . . . Knockbacks . | . . . Impact . | . . . Kinetic . | . . . Secondary . | . . . Self-Inflicted Damage . | . . . Shots . | . . . Rammed . | . . . Targets Rammed . | . . . Kicked . | . . . Crushed . | . . . Highest Temperature . | . . . Average Temperature . | . . . Received Heat Transfer . | . . . Siege Activations . | . . . Martial Activations . | . . . Shielding Activations . | . . . Robots Disrupted . | . . . Combat Hostiles . | . . . Robots Corrupted . | . . . Combat Hostiles . | . . . Parts Fried . | . . . Impact Corruptions . | . . . Robots Melted . | . . . Combat Hostiles . | . . . Parts Melted 1 | . . 1 Heat Transferred 666 | . . 666 Parts Sabotaged . | . . . Parts Stolen . | . . . Parts Stripped . | . . . Power Chain Reactions . | . . . Alert | -11 -10 -10 ------- Run | Yrd Mat Sub Maximum Alert Level . | . . . Low Security (%) 100 | 100 100 . Level 1 . | . . . Level 2 . | . . . Level 3 . | . . . Level 4 . | . . . Level 5 . | . . . High Security . | . . . Max Security . | . . . Peak Influence 6 | 5 6 . Initial . | . . . Average . | . . . Influence Increases 11 | 5 6 . Destroy 0b10 Robot/NC 5 | 5 . . Successful Hack 6 | . 6 . Influence Decreases 11 | 5 6 . Time Decay 11 | 5 6 . Squads Dispatched 1 | . 1 . Investigation . | . . . Extermination . | . . . Reinforcement 1 | . 1 . Assault . | . . . Garrison . | . . . Intercept . | . . . Searches Triggered . | . . . Construction Impeded . | . . . Haulers Reinforced . | . . . Active Scanning Responses . | . . . Cargo Convoy Interrupts . | . . . Stealth | -11 -10 -10 --------- Run | Yrd Mat Sub Distress Signals . | . . . Communications Jammed . | . . . Distress Signals . | . . . Times Spotted 6 | . 2 4 Peak Tracking Total 2 | . 2 2 Tactical Retreats . | . . . Traps | -11 -10 -10 ------- Run | Yrd Mat Sub Traps Triggered 3 | . . 3 Indirectly . | . . . Trap Hack Attempts . | . . . Triggered . | . . . Disarmed . | . . . Reprogrammed . | . . . Reused . | . . . Traps Extracted . | . . . Installed . | . . . Triggered . | . . . Machines | -11 -10 -10 ---------- Run | Yrd Mat Sub Machines Disabled . | . . . Max in Single Turn . | . . . Machines Repaired . | . . . Machines Dismantled . | . . . Machines Sabotaged . | . . . Overloaded Fab Kills . | . . . Hacking | -11 -10 -10 --------- Run | Yrd Mat Sub Machines Accessed 3 | . 2 1 Terminals 2 | . 2 . Fabricators . | . . . Repair Stations . | . . . Recycling Units . | . . . Scanalyzers . | . . . Garrison Access . | . . . Total Hacks 9 | . 5 4 Successful 5 | . 1 4 Failed 4 | . 4 . Catastrophic . | . . . Database Lockouts . | . . . Manual 5 | . 5 . Terminals 5 | . 5 . Fabricators . | . . . Repair Stations . | . . . Recycling Units . | . . . Scanalyzers . | . . . Garrison Access . | . . . Terminal Hacks 4 | . . 4 Record 4 | . . 4 Fabricator Hacks . | . . . Repair Station Hacks . | . . . Recycling Unit Hacks . | . . . Scanalyzer . | . . . Garrison Access Hacks . | . . . Unauthorized Hacks 1 | . 1 . Terminals 1 | . 1 . Assimilate 1 | . 1 . Fabricators . | . . . Repair Stations . | . . . Recycling Units . | . . . Scanalyzers . | . . . Garrison Access . | . . . Data Cores Recovered . | . . . Used . | . . . Hacking Detections 2 | . 2 . Full Trace Events . | . . . Feedback Events . | . . . Feedback Blocked . | . . . Robot Schematics Acquired . | . . . Robots Built . | . . . Authchips . | . . . Time . | . . . Total Robot Build Rating . | . . . Part Schematics Acquired . | . . . Parts Built . | . . . Authchips . | . . . Time . | . . . Total Part Build Rating . | . . . Part Studies Acquired . | . . . Parts Repaired . | . . . Time . | . . . Parts Recycled . | . . . Recycled Matter . | . . . Retrieved Matter . | . . . Retrieved Components . | . . . Parts Scanalyzed . | . . . Part Schematics Acquired . | . . . Parts Damaged . | . . . Bothacking | -11 -10 -10 ------------ Run | Yrd Mat Sub Used RIF Installer . | . . . Robots Hacked . | . . . Non-combat . | . . . Combat . | . . . Robot Hacks Applied . | . . . Relay Couplers Released . | . . . Fabnet Peak Effective % . | . . . Robots Rewired . | . . . Allies Hacked . | . . . Hacks Repelled . | . . . Allies | -11 -10 -10 -------- Run | Yrd Mat Sub Total Allies . | . . . Largest Group . | . . . Highest-Rated Group . | . . . Highest-Rated Ally . | . . . Total Orders . | . . . Ally Attacks . | . . . Total Damage . | . . . Kills . | . . . Allies Corrupted . | . . . Allies Melted . | . . . Intel | -11 -10 -10 ------- Run | Yrd Mat Sub Active Infowar (turns) 999 | . 420 579 Sensors 999 | . 420 579 Robot Analysis Total . | . . . Derelict Logs Recovered 1 | . . 1 Drone Launches . | . . . Drone Recoveries . | . . . Exploration | -11 -10 -10 ------------- Run | Yrd Mat Sub Turns Passed 1182 | 109 494 579 Spaces Moved 727 | 63 270 394 Core 26 | 11 . 15 Treads . | . . . Legs 347 | 52 270 25 Wheels 354 | . . 354 Hover . | . . . Flight . | . . . Fastest Speed 50 | 50 120 110 Average Speed 117 | 118 120 115 Slowest Speed 250 | 150 120 250 Overloaded Moves . | . . . Propulsion Burnouts . | . . . Robots Hopped . | . . . Potential Cave-ins . | . . . Cave-ins Triggered . | . . . Exploration Rate (%) 16 | 4 28 17 Regions Visited 2 Branch Regions 1 Pre-discovered Areas 1 | . . 1 Known Exits Taken . | . . . Unknown Exits Taken 2 | 1 1 . Scrap Searched . | . . . Spaces Dug . | . . . Terrain Destroyed . | . . . Melee . | . . . Projectile . | . . . AOE . | . . . Terrain Rammed . | . . . Walls Destroyed . | . . . Machines Disabled . | . . . Actions | -11 -10 -10 --------- Run | Yrd Mat Sub Total 995 | 87 439 469 Wait 204 | 8 164 32 Move 725 | 62 269 394 Hop . | . . . Pick Up 17 | 6 4 7 Fast Attach . | . . . Attach 14 | 6 1 7 Detach 1 | . . 1 Swap 1 | . 1 . Drop . | . . . Fire 33 | 5 . 28 Melee . | . . . Ram . | . . . Kick . | . . . Crush . | . . . Escape Stasis . | . . . Rewire . | . . . Trap . | . . . Miscellaneous . | . . . Route ------- -11/Scrapyard -10/Materials -10/Subcaves (discovered 1 exit: Rec) History --------- Turn | Location | Event 12 | -11/Scrapyard | Discovered new exit (range 15) 110 | -11/Scrapyard | Entered Materials 293 | -10/Materials | Discovered new exit (range 6) 300 | -10/Materials | Build established: Mutant 604 | -10/Materials | Entered Subcaves 672 | -10/Subcaves | Core integrity fell below 50% 714 | -10/Subcaves | Lost 4 parts (1p2n1w) 838 | -10/Subcaves | Core integrity fell below 20% 971 | -10/Subcaves | Visited Clippyterm 974 | -10/Subcaves | Identified exit to Recycling 1183 | -10/Subcaves | Destroyed by Piercing Trap Last Messages --------------- It looks like you're after the notorious thief from 0b1. I don't know where they are, but my data indicates that someone they're looking for is frequently seen in Scraptown. 01076_ Subatomizers dissect the Disposable Heat Sink. 01087_ Sub. Monowheel shoots sparks and powers down. 01157_ Triggered Piercing Trap. 01157_ Spikes shoot up from the floor. 01157_ Critical hit (Impale). 01162_ Triggered Piercing Trap. 01162_ Spikes shoot up from the floor. 01162_ Critical hit (Impale). 01162_ Sub. Monowheel destroyed. 01183_ Triggered Piercing Trap. 01183_ Spikes shoot up from the floor. 01183_ Critical hit (Impale). 01183_ Sensor Array destroyed. 01183_ Critical hit (Impale). Map ----- +----------------------------------------------------+ | ????????????#"""?## " #???### ##?????????????? | | ????????????#"""## """###???# #?????????????? | | ???????????## " # """"""##??# #?????????????? | | ??????????## "" """""#### #?????????????? | | ??????????# " ""## #?????????????? | | ??????????#### " #" " ## #?????????????? | | ?????????????# " ##"" !% #? #?????????????? | | ?????????????## " #### !## #?###?????????????? | | ??????????????## ##?#" ######?????????????????? | | ???????????????#" ""######??????????????????????? | | ???????????????# " ###????????????????????????? | | ???????????????# "" ###??????????????????????? | | ???????????????# ### #"##?????????????????????? | | ???????????????##??# #?????????????????????? | | ??????????????#????## #?????????????????????? | | ????????????### ##### ^ ##????????????????????? | | ????????????# ###??????????????????? | | ?????????????# ^ #??????????????????? | | ?????????????# # # ### #??????????????????? | | ?????????????#? ?## #### #??????????????????? | | ?????????????# ???# ##?###??????????????????? | | ?????????????# ????## ##?????????????????????? | | ????????????# ??????## ##????????????????????? | | ????????????#????????### #????????????????????? | | ???????????????????????# #????????????????????? | | ???????????????????????# @ #????????????????????? | | ???????????????????????## #???????????????????? | | ????????????????????????## ##???????????????????? | | ?????????????????????????? ????????????????????? | | ?????????????????????????? # ???????????????????? | | ?????????????????????????? ??????????????????? | | ??????????????????????????##? ??????????????????? | | ?????????????????????????????# ?????????????????? | | ??????????????????????????????"#????????????????? | | ??????????????????????????????? ????????????????? | | ??????????????????????????????? #???????????????? | | ????????????????????????????????????????????????? | | ????????????????????????????????????????????????? | | ????????????????????????????????????????????????? | | ????????????????????????????????????????????????? | | ????????????????????????????????????????????????? | | ????????????????????????????????????????????????? | | ????????????????????????????????????????????????? | | ????????????????????????????????????????????????? | | ????????????????????????????????????????????????? | | ????????????????????????????????????????????????? | | ????????????????????????????????????????????????? | | ????????????????????????????????????????????????? | | ????????????????????????????????????????????????? | | ????????????????????????????????????????????????? | +----------------------------------------------------+ Best States ------------- Heat Dissipation 25 Energy Generation 15 Energy Capacity 200 Matter Stores 300 Matter Capacity 300 Sight Range 16 Robot Scan Range 14 Terrain Scan Density 10 Evasion (%) 55 Item Schematics ----------------- None Robot Schematics ------------------ None Fabricated ------------ Nothing Repaired ---------- Nothing Studied --------- None Alien Tech Used ----------------- None Achievements -------------- None Challenges ------------ None Game ------ Seed CoolantSlugNukerbomber Manual? 0 Play Time 00:15:10 Cumulative 13.6 hours Start 2026.02.19 @ 02:22:06 End 2026.02.19 @ 02:41:08 Sessions 1 Manual Loads 0 Difficulty Rogue Special Mode None Game No. 18 Rogue 18 Adventurer 0 Explorer 0 Win Type - Total 0 Types 0/0/0/0/0/0/0/0/0/0 Lore% 21 Gallery% 21 Achievement% 16 Wizard Run 0 Options --------- Layout 1 ASCII 0 Keyboard 0 Movement Mouse Keybinds 0 Fullscreen 1 Font 24/Swanston Map View 50x35 Zoom Use 0% Tactical HUD 1 Map Filters NONE Filters NONE Steam 1 RUN: 9c7a15fa-5008-4f15-a614-8d6bf7b61f8b